fUSD/lending_fUSD_20250107
["ID","MTS","AMOUNT","RATE_DAILY","PERIOD"]
[348018679,1736267487618,-500.0,0.00012052,2]
[348018680,1736267487627,-1444.87,0.00012052,2]
[348018681,1736267487636,-1049.13,0.00012052,2]
[348018682,1736267487646,-542.85,0.00012052,2]
[348018683,1736267487656,-558.15,0.00012052,2]
[348018684,1736267487665,-647.23,0.00012052,2]
[348018685,1736267487675,-969.42,0.00012052,2]
[348018686,1736267487685,-1367.4,0.00012052,2]
[348018687,1736267487695,-2331.42,0.00012052,2]
[348018688,1736267487704,-500.0,0.00012052,2]
[348018689,1736267487714,-1163.5,0.00012052,2]
[348018690,1736267487724,-1993.52,0.00012052,2]
[348018691,1736267487733,-577.93,0.00012052,2]
[348018692,1736267487743,-615.01,0.00012052,2]
[348018693,1736267487752,-686.12,0.00012052,2]
[348018694,1736267487766,-1126.8,0.00012052,2]
[348018695,1736267487775,-1188.88,0.00012052,2]
[348018696,1736267487785,-1316.37,0.00012052,2]
[348018697,1736267487795,-1587.65,0.00012052,2]
[348018698,1736267487804,-5021.88,0.00012052,2]
[348018699,1736267487814,-1081.07,0.00012052,2]
[348018700,1736267487824,-1842.76,0.00012052,2]
[348018701,1736267487833,-623.76,0.00012052,2]
[348018702,1736267487843,-526.22,0.00012052,2]
[348018703,1736267487853,-1954.15,0.00012052,2]
[348018704,1736267487863,-1293.13,0.00012052,2]
[348018705,1736267487873,-8080.42,0.00012052,2]
[348018706,1736267487883,-1184.45,0.00012052,2]
[348018707,1736267487893,-1095.91,0.00012052,2]
[348018708,1736267487902,-1513.27,0.00012052,2]
[348018709,1736267487911,-965.37,0.00012052,2]
[348018710,1736267487921,-732.67,0.00012052,2]
[348018711,1736267487931,-500.0,0.00012052,2]
[348018712,1736267487940,-500.0,0.00012053,2]
[348018713,1736267487950,-500.0,0.00012053,2]
[348018714,1736267487960,-500.0,0.00012053,2]
[348018715,1736267487969,-500.0,0.00012053,2]
[348018716,1736267487978,-500.0,0.00012053,2]
[348018717,1736267487989,-612.41,0.00012053,2]
[348018718,1736267487998,-500.0,0.00012053,2]
[348018719,1736267488010,-500.0,0.00012053,2]
[348018720,1736267488020,-568.3,0.00012053,2]
[348018721,1736267488029,-500.0,0.00012053,2]
[348018722,1736267488038,-500.0,0.00012053,2]
[348018723,1736267488047,-500.0,0.00012053,2]
[348018724,1736267488057,-500.0,0.00012053,2]
[348018725,1736267488067,-500.0,0.00012053,2]
[348018726,1736267488077,-500.0,0.00012053,2]
[348018727,1736267488086,-500.0,0.00012053,2]
[348018728,1736267488096,-500.0,0.00012053,2]
[348018729,1736267488106,-500.0,0.00012053,2]
[348018730,1736267488117,-500.0,0.00012053,2]
[348018731,1736267488131,-500.0,0.00012053,2]
[348018732,1736267488141,-500.0,0.00012053,2]
[348018733,1736267488150,-500.0,0.00012053,2]
[348018734,1736267488160,-500.0,0.00012053,2]
[348018735,1736267488169,-801.47,0.00012053,2]
[348018736,1736267488179,-729.91,0.00012053,2]
[348018737,1736267488189,-500.0,0.00012053,2]
[348018738,1736267488200,-500.0,0.00012053,2]
[348018739,1736267488210,-928.62,0.00012053,2]
[348018740,1736267488220,-500.0,0.00012053,2]
[348018741,1736267488231,-854.16,0.00012053,2]
[348018742,1736267488240,-500.0,0.00012053,2]
[348018743,1736267488251,-542.86,0.00012053,2]
[348018744,1736267488263,-500.0,0.00012053,2]
[348018745,1736267488274,-599.33,0.00012053,2]
[348018746,1736267488284,-500.0,0.00012053,2]
[348018747,1736267488295,-500.0,0.00012053,2]
[348018748,1736267488308,-500.0,0.00012053,2]
[348018749,1736267488319,-810.99,0.00012053,2]
[348018750,1736267488330,-599.93,0.00012053,2]
[348018751,1736267488341,-508.05,0.00012053,2]
[348018752,1736267488351,-1201.14,0.00012053,2]
[348018753,1736267488361,-500.0,0.00012053,2]
[348018754,1736267488373,-571.06,0.00012053,2]
[348018755,1736267488384,-525.59,0.00012053,2]
[348018756,1736267488394,-810.82,0.00012053,2]
[348018757,1736267488573,-500.0,0.00012053,2]
[348018758,1736267488584,-500.0,0.00012053,2]
[348018759,1736267488595,-932.52,0.00012053,2]
[348018760,1736267488605,-592.71,0.00012053,2]
[348018761,1736267488615,-755.02,0.00012053,2]
[348018762,1736267488626,-1708.93,0.00012053,2]
[348018763,1736267488635,-732.65,0.00012053,2]
[348018764,1736267488646,-500.0,0.00012053,2]
[348018765,1736267488657,-968.82,0.00012053,2]
[348018766,1736267488666,-500.0,0.00012053,2]
[348018767,1736267488676,-656.33,0.00012053,2]
[348018768,1736267488686,-2312.14,0.00012053,2]
[348018769,1736267488697,-653.43,0.00012053,2]
[348018770,1736267488707,-509.35,0.00012053,2]
[348018771,1736267488717,-1224.71,0.00012053,2]
[348018772,1736267488729,-676.46,0.00012053,2]
[348018773,1736267488739,-1278.64,0.00012053,2]
[348018774,1736267488748,-500.0,0.00012053,2]
[348018775,1736267488762,-2273.14,0.00012053,2]
[348018776,1736267488772,-500.0,0.00012053,2]
[348018777,1736267488781,-655.64,0.00012053,2]
[348018778,1736267488791,-500.0,0.00012053,2]
[348018779,1736267488801,-1755.68,0.00012053,2]
[348018780,1736267488810,-831.14,0.00012053,2]
[348018781,1736267488821,-506.99,0.00012053,2]
[348018782,1736267488831,-1824.34,0.00012053,2]
[348018783,1736267488841,-1672.31,0.00012053,2]
[348018784,1736267488851,-1234.28,0.00012053,2]
[348018785,1736267488861,-5758.85,0.00012053,2]
[348018786,1736267488871,-3286.8,0.00012053,2]
[348018787,1736267488882,-7550.74,0.00012053,2]
[348018788,1736267488892,-1665.46,0.00012053,2]
[348018789,1736267488903,-1959.51,0.00012053,2]
[348018790,1736267488913,-1750.43,0.00012053,2]
[348018791,1736267488923,-500.0,0.00012053,2]
[348018792,1736267488933,-1973.97,0.00012053,2]
[348018793,1736267488943,-2041.29,0.00012053,2]
[348018794,1736267488953,-1101.15,0.00012054,2]
[348018795,1736267488963,-1164.44,0.00012054,2]
[348018796,1736267488973,-2840.58,0.00012054,2]
[348018797,1736267488983,-500.0,0.00012054,2]
[348018798,1736267488994,-1456.13,0.00012054,2]
[348018799,1736267489006,-576.91,0.00012054,2]
[348018800,1736267489022,-200.0,0.00012055,2]
[348018801,1736267489034,-983.72,0.00012059,5]
[348018802,1736267489044,-506.7,0.00012061,2]
[348018803,1736267489055,-2659.72,0.00012061,2]
[348018804,1736267489066,-4380.46,0.00012061,2]
[348018805,1736267489077,-2044.96,0.00012061,2]
[348018806,1736267489088,-500.0,0.00012061,2]
[348018807,1736267489098,-1333.99,0.00012061,2]
[348018808,1736267489109,-3245.41,0.00012061,2]
[348018809,1736267489122,-520.03,0.00012061,2]
[348018810,1736267489132,-539.65,0.00012061,2]
[348018811,1736267489143,-500.0,0.00012061,2]
[348018812,1736267489153,-500.0,0.00012061,2]
[348018813,1736267489164,-500.0,0.00012061,2]
[348018814,1736267489175,-1597.45,0.000121,2]
[348018815,1736267489186,-202.8,0.000121,2]
[348018816,1736267489197,-133308.47961722,0.000121,2]
[348018817,1736267489209,-1017.92,0.00012117,5]
[348018818,1736267489221,-152.0,0.0001214,9]
[348018819,1736267489233,-1500.0,0.00012148,2]
[348018820,1736267489244,-151.0,0.00012155,2]
[348018821,1736267489257,-285.817558,0.00012155,2]
[348018822,1736267489275,-514.18,0.00012155,2]
[348018823,1736267489290,-3607.22,0.00012155,2]
[348018824,1736267489302,-1161.73,0.00012155,2]
[348018825,1736267489316,-1461.14,0.00012155,2]
[348018826,1736267489328,-500.0,0.00012155,2]
[348018827,1736267489338,-1326.5,0.00012155,2]
[348018828,1736267489350,-1417.66,0.00012155,2]
[348018829,1736267489362,-989.28,0.00012155,2]
[348018830,1736267489373,-2101.04,0.00012156,2]
[348018831,1736267489384,-1203.13,0.00012156,2]
[348018832,1736267489395,-1338.36,0.00012156,2]
[348018833,1736267489406,-2784.68,0.00012156,2]
[348018834,1736267489417,-2207.76,0.00012156,2]
[348018835,1736267489428,-353.68138949,0.00012159,2]
[348018836,1736267489439,-150.0,0.00012161,2]
[348018837,1736267489449,-1013.72,0.00012175,5]
[348018838,1736267489461,-500.0,0.00012199,2]
[348018839,1736267489476,-607.75,0.00012199,2]
[348018840,1736267489489,-920401.59632342,0.000122,2]
[348018841,1736267489499,-10000.0,0.000122,3]
[348018842,1736267489510,-151.0,0.000122,2]
[348018843,1736267489521,-151.0,0.000122,2]
[348018844,1736267489533,-164.97112933,0.000122,2]
[348018845,1736267489544,-22727.00761783,0.000122,2]
[348018846,1736267489555,-343.22314121,0.000122,2]
[348018847,1736267489566,-150.0,0.0001222,2]
[348018848,1736267489577,-44021.5566871,0.00012223,3]
[348018849,1736267489591,-1012.89,0.00012262,5]
[348018850,1736267489602,-39500.24635776,0.00012263,2]
[348018851,1736267489614,-1000.0,0.00012267,2]
[348018852,1736267489626,-1000.0,0.00012267,2]
[348018853,1736267489637,-1000.0,0.00012267,2]
[348018854,1736267489649,-1000.0,0.00012267,2]
[348018855,1736267489661,-1000.0,0.00012267,2]
[348018856,1736267489672,-1000.0,0.00012267,2]
[348018857,1736267489683,-1000.0,0.00012267,2]
[348018858,1736267489694,-1001.88743794,0.00012267,2]
[348018859,1736267489705,-7248.9779,0.0001228,5]
[348018860,1736267489716,-1009.51,0.0001228,5]
[348018861,1736267489727,-1018.87,0.0001228,5]
[348018862,1736267489738,-999.63,0.0001228,5]
[348018863,1736267489749,-983.55,0.0001228,5]
[348018864,1736267489778,-995.55,0.0001228,5]
[348018865,1736267489789,-989.98,0.0001228,5]
[348018866,1736267489800,-1013.31,0.0001228,5]
[348018867,1736267489813,-1006.7,0.0001228,5]
[348018868,1736267489824,-1014.34,0.0001228,5]
[348018869,1736267489836,-150.0,0.00012285,2]
[348018870,1736267489848,-150.0,0.00012292,2]
[348018871,1736267489861,-514.18,0.00012292,2]
[348018872,1736267489874,-500.0,0.00012292,2]
[348018873,1736267489886,-150.0,0.00012292,2]
[348018874,1736267489897,-150.0,0.00012292,2]
[348018875,1736267489908,-500.0,0.00012292,2]
[348018876,1736267489919,-150.0,0.00012292,2]
[348018877,1736267489930,-3345.0,0.00012292,2]
[348018878,1736267489941,-379.84835809,0.00012298,2]
[348018879,1736267489952,-11377.54392136,0.00012299,2]
[348018880,1736267489962,-308352.84554659,0.000123,2]
[348018881,1736267489973,-10068291.27483868,0.000123,2]
[348018882,1736267489984,-3565470.83813067,0.000123,2]
[348018883,1736267490446,-5003.81725163,0.000123,2]
[348018884,1736267490459,-60997.08994623,0.000123,2]
[348018885,1736267490473,-303432.63715314,0.000123,2]
[348018886,1736267490486,-922.61,0.000123,2]
[348018887,1736267490519,-212711.99348203,0.000123,2]
[348018888,1736267490532,-113149.92886718,0.000123,2]
[348018889,1736267490544,-18400.0,0.000123,2]
[348018890,1736267490556,-978.56,0.000123,2]
[348018891,1736267490602,-94147.02409408,0.000123,2]
[348018892,1736267491344,-500.0,8.499e-05,2]
[348018893,1736267491355,-500.0,8.499e-05,2]
[348018894,1736267491364,-500.0,8.773e-05,2]
[348018895,1736267491374,-500.0,8.773e-05,2]
[348018896,1736267491383,-500.0,9.86e-05,2]
[348018897,1736267491393,-499.32,9.86e-05,2]
[348018898,1736267491402,-361.11072305,0.00010233,2]
[348018899,1736267491412,-160.28249368,0.00010244,2]
[348018900,1736267491422,-160.04836673,0.00010244,2]
[348018901,1736267491433,-769.78,0.00011231,2]
[348018902,1736267491444,-769.78,0.00011505,2]
[348018903,1736267491454,-3491.12,0.00011778,2]
[348018904,1736267491465,-769.78,0.00011779,2]
[348018905,1736267491475,-1540.67,0.00012061,2]
[348018906,1736267491485,-4207.6196005,0.000123,2]
[348018907,1736267491496,-1086.00001,0.000123,2]
[348018908,1736267491507,-5356.5692084,0.000123,2]
[348018909,1736267491526,-294.766356,0.000123,2]
[348018910,1736267491631,-500.0,8.499e-05,2]
[348018911,1736267491642,-284.08,0.000123,2]
[348018912,1736267491654,-6905.45253584,0.000123,2]
[348018913,1736267491667,-838.670005,0.000123,2]
[348018914,1736267491679,-401.00079338,0.000123,2]
[348018915,1736267491706,-500.0,0.00010133,2]
[348018916,1736267491716,-542.36436997,0.000123,2]
[348018917,1736267491727,-7901.67657273,0.000123,2]
[348018918,1736267491739,-342.31556842,0.000123,2]
[348018919,1736267491757,-15347.92244726,0.000123,2]
[348018920,1736267491774,-15186.239865,0.000123,2]
[348018921,1736267491798,-500.0,8.773e-05,2]
[348018922,1736267491807,-30810.67360511,0.000123,2]
[348018923,1736267491817,-2247.49758777,0.000123,2]
[348018924,1736267491828,-485.365,0.000123,2]
[348018925,1736267491839,-5059.3755369,0.000123,2]
[348018926,1736267491851,-1862.54424,0.000123,2]
[348018927,1736267491862,-2197.83539945,0.000123,2]
[348018928,1736267491873,-4128.63986883,0.000123,2]
[348018929,1736267491884,-3933.36463944,0.000123,2]
[348018930,1736267491895,-2288.91045091,0.000123,2]
[348018931,1736267491907,-438.37999999,0.000123,2]
[348018932,1736267491918,-563.992002,0.000123,2]
[348018933,1736267491929,-463.95250134,0.000123,2]
[348018934,1736267491951,-24075.18430918,0.000123,2]
[348018935,1736267491963,-3555.0,0.000123,2]
[348018936,1736267491974,-256870.20336438,0.000123,2]
[348018937,1736267491985,-644.82818535,0.000123,2]
[348018938,1736267491997,-335.17470444,0.000123,2]
[348018939,1736267492438,-500.0,8.499e-05,2]
[348018940,1736267492448,-137.32460036,8.499e-05,2]
[348018941,1736267492459,-362.67539964,8.499e-05,2]
[348018942,1736267492469,-127.00113786,8.499e-05,2]
[348018943,1736267492480,-372.99886214,8.499e-05,2]
[348018944,1736267492490,-500.0,8.773e-05,2]
[348018945,1736267492500,-632.0,8.773e-05,2]
[348018946,1736267492509,-500.0,8.773e-05,2]
[348018947,1736267492520,-500.0,9.047e-05,2]
[348018948,1736267492530,-359.94,9.047e-05,2]
[348018949,1736267492539,-500.0,9.321e-05,2]
[348018950,1736267492549,-223.0682267,9.595e-05,2]
[348018951,1736267492559,-2327.41,9.86e-05,2]
[348018952,1736267492568,-500.0,9.86e-05,2]
[348018953,1736267492577,-500.0,9.86e-05,2]
[348018954,1736267492587,-500.0,9.86e-05,2]
[348018955,1736267492596,-2327.41,0.00010134,2]
[348018956,1736267492605,-500.0,0.00010134,2]
[348018957,1736267492614,-500.0,0.00010134,2]
[348018958,1736267492624,-500.0,0.00010408,2]
[348018959,1736267492633,-2327.41,0.00010408,2]
[348018960,1736267492643,-500.0,0.00010682,2]
[348018961,1736267492652,-1173.0,0.00010693,2]
[348018962,1736267492662,-500.0,0.00010956,2]
[348018963,1736267492671,-769.78,0.00012053,2]
[348018964,1736267492680,-395468.72649555,0.000123,2]
[348018965,1736267492691,-49976.6735233,0.000123,2]
[348018966,1736267492702,-383.20020393,0.000123,2]
[348018967,1736267492713,-4061167.20029089,0.000123,2]
[348018968,1736267492723,-33188.94314799,0.000123,2]
[348018969,1736267492734,-9814.9908,0.000123,2]
[348018970,1736267492746,-3975.12407559,0.000123,2]
[348018971,1736267492757,-1169.032455,0.000123,2]
[348018972,1736267492770,-664.717,0.000123,2]
[348018973,1736267492811,-500.0,8.499e-05,2]
[348018974,1736267492820,-500.0,0.00010408,2]
[348018975,1736267492831,-500.0,0.0001123,2]
[348018976,1736267492841,-18752.04194209,0.000123,2]
[348018977,1736267492852,-24702.30326925,0.000123,2]
[348018978,1736267492863,-316.78499702,0.000123,2]
[348018979,1736267492874,-1123.01564372,0.000123,2]
[348018980,1736267492899,-345.52999999,0.000123,2]
[348018981,1736267492910,-364.73,0.000123,2]
[348018982,1736267492921,-2516.16206871,0.000123,2]
[348018983,1736267492932,-4600.0,0.000123,2]
[348018984,1736267492943,-3658.8,0.000123,2]
[348018985,1736267492955,-578.58314681,0.000123,2]
[348018986,1736267492966,-468.8786624,0.000123,2]
[348018987,1736267492977,-459.4436244,0.000123,2]
[348018988,1736267492989,-578.349716,0.000123,2]
[348018989,1736267493000,-427.42,0.000123,2]
[348018990,1736267493184,-513.4034575,0.000123,2]
[348018991,1736267493200,-567.93,0.000123,2]
[348018992,1736267493213,-475.5,0.000123,2]
[348018993,1736267493226,-602.72741978,0.000123,2]
[348018994,1736267493238,-954.6,0.000123,2]
[348018995,1736267493251,-764.72434,0.000123,2]
[348018996,1736267493262,-7714.896462,0.000123,2]
[348018997,1736267493278,-2177.02760022,0.000123,2]
[348018998,1736267493868,-503.8079036,8.499e-05,2]
[348018999,1736267493878,-500.0,8.499e-05,2]
[348019000,1736267493888,-500.0,8.499e-05,2]
[348019001,1736267493897,-500.0,8.499e-05,2]
[348019002,1736267493907,-500.0,8.499e-05,2]
[348019003,1736267493917,-500.0,8.773e-05,2]
[348019004,1736267493926,-979.45,9.658e-05,2]
[348019005,1736267493935,-500.0,9.86e-05,2]
[348019006,1736267493945,-500.0,9.86e-05,2]
[348019007,1736267493954,-211.505226,0.00010134,2]
[348019008,1736267493963,-5.11910365,0.00010682,2]
[348019009,1736267493975,-494.88089635,0.00010682,2]
[348019010,1736267493984,-61.90308836,0.00010682,2]
[348019011,1736267493995,-149.60213764,0.00010682,2]
[348019012,1736267494004,-500.0,0.00010956,2]
[348019013,1736267494014,-500.0,0.00011504,2]
[348019014,1736267494025,-500.0,0.00011778,2]
[348019015,1736267494035,-30.03015756,0.00012052,2]
[348019016,1736267494047,-469.96984244,0.00012052,2]
[348019017,1736267494059,-97.80972407,0.000123,2]
[348019018,1736267494190,-59.24510911,0.000123,2]
[348019019,1736267494202,-4888.1,0.000123,2]
[348019020,1736267494215,-4425.05887083,0.000123,2]
[348019021,1736267494228,-732.90363,0.000123,2]
[348019022,1736267494247,-408.24791984,0.000123,2]
[348019023,1736267494259,-494.25446077,0.000123,2]
[348019024,1736267494273,-1281.46614566,0.000123,2]
[348019025,1736267494284,-71229.0,0.000123,2]
[348019026,1736267494295,-740.40033588,0.000123,2]
[348019027,1736267494308,-339.65510955,0.000123,2]
[348019028,1736267494322,-3950.78810474,0.000123,2]
[348019029,1736267494333,-2692.046137,0.000123,2]
[348019030,1736267494352,-51114.20135822,0.000123,2]
[348019031,1736267494363,-384040.64011796,0.000123,2]
[348019032,1736267494378,-2946.36745992,0.000123,2]
[348019033,1736267494390,-729.12371714,0.000123,2]
[348019034,1736267494401,-493.34,0.000123,2]
[348019035,1736267494412,-77864.21427871,0.000123,2]
[348019036,1736267494424,-19589.6426405,0.000123,2]
[348019037,1736267494440,-5935.50695185,0.000123,2]
[348019048,1736267970553,8309.0,0.0002,120]
[348019069,1736268631671,-23900.0,8.046e-05,2]
[348019070,1736268631682,-1496.88939809,8.219e-05,2]
[348019071,1736268631693,-1002.72,8.219e-05,2]
[348019072,1736268631703,-1000.0,8.219e-05,2]
[348019073,1736268631716,-250.0,8.219e-05,2]
[348019074,1736268631727,-150.0,8.341e-05,2]
[348019075,1736268631738,-300.0,8.341e-05,2]
[348019076,1736268631750,-131288.0,8.342e-05,2]
[348019077,1736268631761,-193.15229098,8.382e-05,2]
[348019078,1736268631771,-3400.49,8.382e-05,2]
[348019079,1736268631782,-150.0,8.466e-05,2]
[348019080,1736268631792,-1321.84,8.497e-05,2]
[348019081,1736268631802,-500.0,8.497e-05,2]
[348019082,1736268631812,-817.02,8.497e-05,2]
[348019083,1736268631822,-960.33,8.498e-05,2]
[348019084,1736268631831,-1090.09,8.498e-05,2]
[348019085,1736268631841,-1547.89,8.498e-05,2]
[348019086,1736268631851,-500.0,8.498e-05,2]
[348019087,1736268631861,-500.0,8.498e-05,2]
[348019088,1736268631870,-500.0,8.498e-05,2]
[348019089,1736268631880,-500.0,8.498e-05,2]
[348019090,1736268631889,-500.0,8.498e-05,2]
[348019091,1736268631899,-500.0,8.498e-05,2]
[348019092,1736268631908,-500.0,8.498e-05,2]
[348019093,1736268631918,-500.0,8.498e-05,2]
[348019094,1736268631927,-500.0,8.498e-05,2]
[348019095,1736268631937,-500.0,8.498e-05,2]
[348019096,1736268631946,-500.0,8.498e-05,2]
[348019097,1736268631957,-500.0,8.498e-05,2]
[348019098,1736268631966,-192.4016296,8.498e-05,2]
[348019099,1736268631975,-500.0,8.498e-05,2]
[348019100,1736268631985,-500.0,8.498e-05,2]
[348019101,1736268631994,-500.0,8.498e-05,2]
[348019102,1736268632003,-500.0,8.498e-05,2]
[348019103,1736268632012,-500.0,8.498e-05,2]
[348019104,1736268632022,-500.0,8.498e-05,2]
[348019105,1736268632031,-500.0,8.498e-05,2]
[348019106,1736268632041,-500.0,8.498e-05,2]
[348019107,1736268632050,-548.74,8.498e-05,2]
[348019108,1736268632059,-567.82,8.498e-05,2]
[348019109,1736268632068,-500.0,8.498e-05,2]
[348019111,1736268632077,-500.0,8.498e-05,2]
[348019113,1736268632086,-500.0,8.498e-05,2]
[348019115,1736268632096,-500.0,8.498e-05,2]
[348019117,1736268632106,-500.0,8.498e-05,2]
[348019119,1736268632115,-500.0,8.498e-05,2]
[348019121,1736268632130,-500.0,8.498e-05,2]
[348019123,1736268632149,-609.14,8.498e-05,2]
[348019125,1736268632166,-500.0,8.498e-05,2]
[348019127,1736268632180,-500.0,8.498e-05,2]
[348019129,1736268632196,-500.0,8.498e-05,2]
[348019131,1736268632222,-500.0,8.498e-05,2]
[348019134,1736268632243,-1230.46,8.498e-05,2]
[348019137,1736268632263,-1921.49,8.498e-05,2]
[348019140,1736268632284,-500.0,8.498e-05,2]
[348019143,1736268632304,-553.12,8.498e-05,2]
[348019146,1736268632326,-500.0,8.498e-05,2]
[348019149,1736268632349,-605.03583834,8.498e-05,2]
[348019152,1736268632371,-500.0,8.498e-05,2]
[348019155,1736268632394,-400.0,8.498e-05,2]
[348019157,1736268632416,-500.0,8.498e-05,2]
[348019159,1736268632426,-500.0,8.498e-05,2]
[348019161,1736268632435,-500.0,8.498e-05,2]
[348019163,1736268632445,-500.0,8.498e-05,2]
[348019165,1736268632455,-500.0,8.498e-05,2]
[348019167,1736268632465,-500.0,8.498e-05,2]
[348019169,1736268632474,-773.27,8.498e-05,2]
[348019171,1736268632485,-500.0,8.498e-05,2]
[348019173,1736268632494,-489.4972686,8.498e-05,2]
[348019175,1736268632504,-500.0,8.498e-05,2]
[348019177,1736268632514,-500.0,8.498e-05,2]
[348019179,1736268632525,-257.33644815,8.498e-05,2]
[348019181,1736268632535,-500.0,8.498e-05,2]
[348019183,1736268632545,-500.0,8.498e-05,2]
[348019185,1736268632555,-500.0,8.498e-05,2]
[348019186,1736268632566,-2392.33,8.498e-05,2]
[348019187,1736268632576,-500.0,8.498e-05,2]
[348019188,1736268632585,-500.0,8.498e-05,2]
[348019189,1736268632596,-514.77,8.498e-05,2]
[348019190,1736268632606,-776.52,8.498e-05,2]
[348019191,1736268632616,-500.0,8.498e-05,2]
[348019192,1736268632625,-343.253094,8.498e-05,2]
[348019193,1736268632635,-500.0,8.498e-05,2]
[348019194,1736268632645,-500.0,8.498e-05,2]
[348019195,1736268632655,-1494.48,8.498e-05,2]
[348019197,1736268632665,-2127.93,8.498e-05,2]
[348019199,1736268632675,-500.0,8.498e-05,2]
[348019201,1736268632685,-500.0,8.498e-05,2]
[348019203,1736268632695,-500.0,8.498e-05,2]
[348019205,1736268632705,-500.0,8.498e-05,2]
[348019207,1736268632715,-500.0,8.498e-05,2]
[348019209,1736268632725,-500.0,8.498e-05,2]
[348019211,1736268632735,-500.0,8.498e-05,2]
[348019212,1736268632746,-500.0,8.498e-05,2]
[348019214,1736268632757,-2342.11,8.498e-05,2]
[348019216,1736268632767,-500.0,8.498e-05,2]
[348019218,1736268632777,-500.0,8.498e-05,2]
[348019220,1736268632787,-500.0,8.498e-05,2]
[348019222,1736268632796,-500.0,8.498e-05,2]
[348019224,1736268632806,-500.0,8.498e-05,2]
[348019226,1736268632815,-500.0,8.498e-05,2]
[348019228,1736268632825,-500.0,8.498e-05,2]
[348019230,1736268632834,-500.0,8.498e-05,2]
[348019232,1736268632844,-500.0,8.498e-05,2]
[348019234,1736268632853,-1333.64,8.498e-05,2]
[348019236,1736268632863,-500.0,8.498e-05,2]
[348019238,1736268632871,-500.0,8.498e-05,2]
[348019240,1736268632880,-2822.03,8.498e-05,2]
[348019242,1736268632890,-500.0,8.498e-05,2]
[348019244,1736268632899,-500.0,8.498e-05,2]
[348019246,1736268632909,-500.0,8.498e-05,2]
[348019248,1736268632917,-500.0,8.498e-05,2]
[348019250,1736268632927,-500.0,8.498e-05,2]
[348019252,1736268632937,-428.65465859,8.498e-05,2]
[348019254,1736268632948,-500.0,8.498e-05,2]
[348019256,1736268632959,-500.0,8.498e-05,2]
[348019258,1736268632968,-500.0,8.498e-05,2]
[348019260,1736268632977,-602.54,8.498e-05,2]
[348019262,1736268632987,-500.0,8.498e-05,2]
[348019264,1736268632996,-500.0,8.498e-05,2]
[348019266,1736268633005,-1190.44,8.498e-05,2]
[348019268,1736268633015,-500.0,8.498e-05,2]
[348019270,1736268633024,-500.0,8.498e-05,2]
[348019272,1736268633033,-500.0,8.498e-05,2]
[348019274,1736268633044,-1887.44,8.498e-05,2]
[348019276,1736268633053,-500.0,8.498e-05,2]
[348019278,1736268633062,-1149.51,8.498e-05,2]
[348019280,1736268633073,-500.0,8.498e-05,2]
[348019282,1736268633083,-500.0,8.498e-05,2]
[348019284,1736268633093,-807.88,8.498e-05,2]
[348019286,1736268633103,-500.0,8.498e-05,2]
[348019288,1736268633112,-500.0,8.498e-05,2]
[348019290,1736268633124,-500.0,8.498e-05,2]
[348019292,1736268633134,-560.76,8.498e-05,2]
[348019294,1736268633144,-1777.29,8.498e-05,2]
[348019296,1736268633154,-500.0,8.498e-05,2]
[348019298,1736268633164,-757.84,8.498e-05,2]
[348019300,1736268633174,-500.0,8.498e-05,2]
[348019302,1736268633184,-188.25307377,8.498e-05,2]
[348019304,1736268633194,-500.0,8.498e-05,2]